[Event "Late-Titled-Tuesday-Blitz-February-13-2024"]
[Site "Chess.com"]
[Date "2024.02.13"]
[Round "11"]
[White "mbojan"]
[Black "jefferyx"]
[Result "1/2-1/2"]
[WhiteElo "2860"]
[BlackElo "3020"]
[TimeControl "180+1"]
[EndTime "15:59:38 PST"]
[Termination "Game drawn by repetition"]

1. a3 {[%clk 0:03:00.9]} 1... e5 {[%clk 0:02:56.2]} 2. e3 {[%clk 0:03:01.2]}
2... d5 {[%clk 0:02:56]} 3. d4 {[%clk 0:03:02.1]} 3... e4 {[%clk 0:02:55.8]} 4.
c4 {[%clk 0:03:02.3]} 4... c6 {[%clk 0:02:56]} 5. Bd2 {[%clk 0:03:02.9]} 5...
Nf6 {[%clk 0:02:52.3]} 6. cxd5 {[%clk 0:03:03.3]} 6... cxd5 {[%clk 0:02:51.9]}
7. Bb4 {[%clk 0:03:03.5]} 7... Bxb4+ {[%clk 0:02:51.7]} 8. axb4 {[%clk
0:03:04.4]} 8... O-O {[%clk 0:02:52.1]} 9. Nc3 {[%clk 0:03:04.7]} 9... Qd6
{[%clk 0:02:50.1]} 10. Qb3 {[%clk 0:03:04.7]} 10... Nc6 {[%clk 0:02:49.4]} 11.
b5 {[%clk 0:03:03.8]} 11... Ne7 {[%clk 0:02:49.3]} 12. Qa3 {[%clk 0:03:00.4]}
12... Qe6 {[%clk 0:02:45.7]} 13. Nge2 {[%clk 0:02:52.5]} 13... Ng6 {[%clk
0:02:46.1]} 14. g3 {[%clk 0:02:51.2]} 14... h5 {[%clk 0:02:43.3]} 15. Nf4 {[%clk
0:02:51]} 15... Nxf4 {[%clk 0:02:42.6]} 16. gxf4 {[%clk 0:02:51.9]} 16... Bd7
{[%clk 0:02:40.6]} 17. h3 {[%clk 0:02:46.3]} 17... Rfc8 {[%clk 0:02:38.3]} 18.
Be2 {[%clk 0:02:45.7]} 18... Qb6 {[%clk 0:02:32.1]} 19. Qa5 {[%clk 0:02:44.2]}
19... Qd6 {[%clk 0:02:29.2]} 20. Qa3 {[%clk 0:02:44.2]} 20... Qb6 {[%clk
0:02:29.3]} 21. Qa5 {[%clk 0:02:44.4]} 21... Qd6 {[%clk 0:02:29.5]} 22. Qa3
{[%clk 0:02:44.6]} 22... Qb6 {[%clk 0:02:29.8]} 1/2-1/2

[Event "Late-Titled-Tuesday-Blitz-February-13-2024"]
[Site "Chess.com"]
[Date "2024.02.13"]
[Round "11"]
[White "Semetey"]
[Black "EsmeraldasAnderson03"]
[Result "0-1"]
[WhiteElo "2594"]
[BlackElo "2468"]
[TimeControl "180+1"]
[EndTime "16:01:01 PST"]
[Termination "EsmeraldasAnderson03 won by resignation"]

1. e4 {[%clk 0:02:38]} 1... c5 {[%clk 0:02:53]} 2. Nc3 {[%clk 0:02:36]} 2... Nc6
{[%clk 0:02:52.2]} 3. Bb5 {[%clk 0:02:35.5]} 3... Nd4 {[%clk 0:02:52]} 4. Nf3
{[%clk 0:02:35.6]} 4... Nxb5 {[%clk 0:02:51.6]} 5. Nxb5 {[%clk 0:02:35.5]} 5...
a6 {[%clk 0:02:50.5]} 6. Nc3 {[%clk 0:02:35.5]} 6... g6 {[%clk 0:02:46.2]} 7. d4
{[%clk 0:02:35.2]} 7... cxd4 {[%clk 0:02:46.1]} 8. Qxd4 {[%clk 0:02:35.2]} 8...
Nf6 {[%clk 0:02:46.7]} 9. e5 {[%clk 0:02:35.3]} 9... Nh5 {[%clk 0:02:44.6]} 10.
e6 {[%clk 0:02:35.2]} 10... f6 {[%clk 0:02:42.8]} 11. Ng5 {[%clk 0:02:25.9]}
11... Qc7 {[%clk 0:02:22.9]} 12. Nf7 {[%clk 0:02:25.4]} 12... Rg8 {[%clk
0:02:22.3]} 13. g4 {[%clk 0:02:20.9]} 13... Ng7 {[%clk 0:02:18.3]} 14. Bf4
{[%clk 0:02:09.9]} 14... Nxe6 {[%clk 0:02:14.1]} 15. Bxc7 {[%clk 0:02:03.7]}
15... Nxd4 {[%clk 0:02:14.4]} 16. O-O-O {[%clk 0:02:02.6]} 16... Ne6 {[%clk
0:02:12.4]} 17. Nd5 {[%clk 0:01:51.6]} 17... Kxf7 {[%clk 0:02:10.1]} 18. Nb6
{[%clk 0:01:51.7]} 18... Nxc7 {[%clk 0:02:00.3]} 19. Nxa8 {[%clk 0:01:51.6]}
19... Nxa8 {[%clk 0:02:01.2]} 0-1

[Event "Late-Titled-Tuesday-Blitz-February-13-2024"]
[Site "Chess.com"]
[Date "2024.02.13"]
[Round "11"]
[White "GMRAVEN_ON_YOUTUBE"]
[Black "Bilan_Danila"]
[Result "1-0"]
[WhiteElo "2775"]
[BlackElo "2541"]
[TimeControl "180+1"]
[EndTime "16:01:10 PST"]
[Termination "GMRAVEN_ON_YOUTUBE won by resignation"]

1. f4 {[%clk 0:03:00.9]} 1... d5 {[%clk 0:02:59.8]} 2. Nf3 {[%clk 0:03:00.8]}
2... Nf6 {[%clk 0:03:00.7]} 3. e3 {[%clk 0:03:01]} 3... c5 {[%clk 0:03:01.4]} 4.
b3 {[%clk 0:03:01]} 4... Nc6 {[%clk 0:03:02]} 5. Bb5 {[%clk 0:03:01.4]} 5... Qb6
{[%clk 0:03:01.1]} 6. Qe2 {[%clk 0:02:57.8]} 6... g6 {[%clk 0:02:59.4]} 7. Bb2
{[%clk 0:02:57.5]} 7... Bg7 {[%clk 0:02:59.8]} 8. O-O {[%clk 0:02:57.5]} 8...
O-O {[%clk 0:02:59.7]} 9. c4 {[%clk 0:02:57.5]} 9... a6 {[%clk 0:02:53.7]} 10.
Bxc6 {[%clk 0:02:55.6]} 10... Qxc6 {[%clk 0:02:54.6]} 11. Ne5 {[%clk 0:02:56]}
11... Qd6 {[%clk 0:02:54.4]} 12. cxd5 {[%clk 0:02:44.8]} 12... Ng4 {[%clk
0:02:26.7]} 13. Nc4 {[%clk 0:02:24.2]} 13... Qxd5 {[%clk 0:02:23.5]} 14. Bxg7
{[%clk 0:02:24.3]} 14... Kxg7 {[%clk 0:02:19.9]} 15. Nb6 {[%clk 0:02:23.6]}
15... Qc6 {[%clk 0:01:43.2]} 16. Nxa8 {[%clk 0:02:19.4]} 16... b5 {[%clk
0:01:43.5]} 17. Qf3 {[%clk 0:02:13.2]} 17... Qd7 {[%clk 0:01:31.4]} 18. Nb6
{[%clk 0:02:08.8]} 1-0

[Event "Late-Titled-Tuesday-Blitz-February-13-2024"]
[Site "Chess.com"]
[Date "2024.02.13"]
[Round "11"]
[White "Burgsvik"]
[Black "Cambek64"]
[Result "1-0"]
[WhiteElo "2340"]
[BlackElo "2481"]
[TimeControl "180+1"]
[EndTime "16:02:00 PST"]
[Termination "Burgsvik won by resignation"]

1. e4 {[%clk 0:03:00.9]} 1... e6 {[%clk 0:03:00.2]} 2. d4 {[%clk 0:03:00.3]}
2... d5 {[%clk 0:03:00.7]} 3. e5 {[%clk 0:03:00.8]} 3... c5 {[%clk 0:03:00.2]}
4. c3 {[%clk 0:03:01.3]} 4... Nc6 {[%clk 0:02:59.6]} 5. a3 {[%clk 0:03:01.8]}
5... Bd7 {[%clk 0:02:59.2]} 6. Nf3 {[%clk 0:03:01.3]} 6... cxd4 {[%clk
0:02:58.2]} 7. cxd4 {[%clk 0:03:01]} 7... Qb6 {[%clk 0:02:58.8]} 8. Nc3 {[%clk
0:03:01.1]} 8... Nge7 {[%clk 0:02:58.6]} 9. Na4 {[%clk 0:03:00.8]} 9... Qd8
{[%clk 0:02:57.9]} 10. Nc5 {[%clk 0:03:00.8]} 10... b6 {[%clk 0:02:57.2]} 11.
Nb7 {[%clk 0:02:59.8]} 11... Qc7 {[%clk 0:02:53.9]} 12. Nd6+ {[%clk 0:02:59.9]}
12... Kd8 {[%clk 0:02:54.2]} 13. Nxf7+ {[%clk 0:03:00.1]} 13... Ke8 {[%clk
0:02:54.2]} 14. Nxh8 {[%clk 0:03:00]} 14... g6 {[%clk 0:02:54.4]} 15. Bg5 {[%clk
0:02:49.5]} 15... Ng8 {[%clk 0:02:36.5]} 16. Bd3 {[%clk 0:02:41.9]} 16... Bg7
{[%clk 0:02:36.1]} 17. Nxg6 {[%clk 0:02:41.9]} 17... hxg6 {[%clk 0:02:24.7]} 18.
Bxg6+ {[%clk 0:02:41.6]} 18... Kf8 {[%clk 0:02:25.6]} 19. O-O {[%clk 0:02:40.2]}
19... Nge7 {[%clk 0:02:25.4]} 20. Bh7 {[%clk 0:02:35.6]} 20... Be8 {[%clk
0:02:17.9]} 21. Nh4 {[%clk 0:02:34.8]} 21... Bf7 {[%clk 0:02:14.1]} 22. Rc1
{[%clk 0:02:33]} 22... Qd7 {[%clk 0:02:12.1]} 23. Qg4 {[%clk 0:02:27.4]} 23...
Qe8 {[%clk 0:02:07.7]} 24. Bf6 {[%clk 0:02:26.6]} 24... Bh6 {[%clk 0:01:44]} 25.
Rc3 {[%clk 0:02:14]} 25... Nxd4 {[%clk 0:01:42.5]} 26. Qxd4 {[%clk 0:02:12.3]}
26... Ng8 {[%clk 0:01:35.5]} 27. Bxg8 {[%clk 0:02:10.9]} 27... Kxg8 {[%clk
0:01:34.7]} 28. Qg4+ {[%clk 0:02:09.2]} 28... Kf8 {[%clk 0:01:34]} 29. Rc7
{[%clk 0:02:08.2]} 29... Rc8 {[%clk 0:01:15.3]} 30. Be7+ {[%clk 0:02:04.3]}
30... Qxe7 {[%clk 0:01:15.6]} 31. Rxc8+ {[%clk 0:02:04]} 31... Be8 {[%clk
0:01:16]} 32. Ng6+ {[%clk 0:02:04.2]} 1-0

[Event "Late-Titled-Tuesday-Blitz-February-13-2024"]
[Site "Chess.com"]
[Date "2024.02.13"]
[Round "11"]
[White "Szparu"]
[Black "Shankland"]
[Result "0-1"]
[WhiteElo "2798"]
[BlackElo "2948"]
[TimeControl "180+1"]
[EndTime "16:02:15 PST"]
[Termination "Shankland won by resignation"]

1. e4 {[%clk 0:03:00.9]} 1... c5 {[%clk 0:02:56.7]} 2. c3 {[%clk 0:03:01.1]}
2... Nf6 {[%clk 0:02:55.2]} 3. e5 {[%clk 0:03:01.5]} 3... Nd5 {[%clk 0:02:55.6]}
4. d4 {[%clk 0:03:02.3]} 4... cxd4 {[%clk 0:02:55.4]} 5. Nf3 {[%clk 0:03:03.2]}
5... d6 {[%clk 0:02:55]} 6. Bc4 {[%clk 0:03:02.4]} 6... dxe5 {[%clk 0:02:52.9]}
7. Nxe5 {[%clk 0:03:01.7]} 7... e6 {[%clk 0:02:48.8]} 8. Qxd4 {[%clk 0:03:01.6]}
8... Qb6 {[%clk 0:02:47.6]} 9. Qe4 {[%clk 0:03:00.4]} 9... Nf6 {[%clk
0:02:43.7]} 10. Qe2 {[%clk 0:03:00.2]} 10... Nbd7 {[%clk 0:02:42.2]} 11. Nf3
{[%clk 0:03:00.3]} 11... Qc7 {[%clk 0:02:40.2]} 12. O-O {[%clk 0:02:59.2]} 12...
b6 {[%clk 0:02:38.2]} 13. Bg5 {[%clk 0:02:58.5]} 13... Be7 {[%clk 0:02:36.7]}
14. Nbd2 {[%clk 0:02:57.7]} 14... O-O {[%clk 0:02:36.6]} 15. Rad1 {[%clk
0:02:54.6]} 15... Bb7 {[%clk 0:02:36.7]} 16. Rfe1 {[%clk 0:02:53]} 16... Rfe8
{[%clk 0:02:34.4]} 17. Bd3 {[%clk 0:02:42]} 17... h6 {[%clk 0:02:29.7]} 18. Bh4
{[%clk 0:02:41.7]} 18... Rad8 {[%clk 0:02:28.8]} 19. Bg3 {[%clk 0:02:36.3]}
19... Qc8 {[%clk 0:02:28]} 20. Bc2 {[%clk 0:02:32.7]} 20... Nh5 {[%clk
0:02:18.4]} 21. Be5 {[%clk 0:02:20.6]} 21... Nxe5 {[%clk 0:02:00.1]} 22. Nxe5
{[%clk 0:02:19.7]} 22... Nf4 {[%clk 0:02:00.3]} 23. Qg4 {[%clk 0:02:12.2]} 23...
Bg5 {[%clk 0:02:00.4]} 24. h4 {[%clk 0:01:51.2]} 24... f5 {[%clk 0:01:58.3]} 25.
Qg3 {[%clk 0:01:50.8]} 25... Nh5 {[%clk 0:01:56.9]} 26. hxg5 {[%clk 0:01:11.4]}
26... Nxg3 {[%clk 0:01:56.9]} 27. fxg3 {[%clk 0:01:11.2]} 27... Qc5+ {[%clk
0:01:55.7]} 28. Kh2 {[%clk 0:01:10.3]} 28... Qf2 {[%clk 0:01:53.3]} 0-1

[Event "Late-Titled-Tuesday-Blitz-February-13-2024"]
[Site "Chess.com"]
[Date "2024.02.13"]
[Round "11"]
[White "GaiozNigalidze"]
[Black "Bryanl106"]
[Result "1-0"]
[WhiteElo "2659"]
[BlackElo "2525"]
[TimeControl "180+1"]
[EndTime "16:02:49 PST"]
[Termination "GaiozNigalidze won by resignation"]

1. e4 {[%clk 0:03:00.9]} 1... e5 {[%clk 0:02:57.9]} 2. Nf3 {[%clk 0:03:00.8]}
2... Nc6 {[%clk 0:02:57.2]} 3. Bb5 {[%clk 0:03:00.7]} 3... a6 {[%clk 0:02:55.6]}
4. Ba4 {[%clk 0:03:00.8]} 4... Nf6 {[%clk 0:02:55.9]} 5. O-O {[%clk 0:03:00.9]}
5... Ke7 {[%clk 0:02:54]} 6. d4 {[%clk 0:02:58.2]} 6... exd4 {[%clk 0:02:50.1]}
7. e5 {[%clk 0:02:55.4]} 7... Ne4 {[%clk 0:02:41.4]} 8. Re1 {[%clk 0:02:54.2]}
8... Nxf2 {[%clk 0:02:30.8]} 9. Kxf2 {[%clk 0:02:45.2]} 9... Ke8 {[%clk
0:02:29.6]} 10. Bxc6 {[%clk 0:02:42.1]} 10... dxc6 {[%clk 0:02:28.9]} 11. Qxd4
{[%clk 0:02:40.1]} 11... Bd7 {[%clk 0:02:21.2]} 12. Bg5 {[%clk 0:02:38.4]} 12...
Qc8 {[%clk 0:02:19.5]} 13. Nc3 {[%clk 0:02:37.6]} 13... Be6 {[%clk 0:02:19]} 14.
Rad1 {[%clk 0:02:35]} 14... h6 {[%clk 0:02:13.8]} 15. Be3 {[%clk 0:02:31.8]}
15... Be7 {[%clk 0:02:11.2]} 16. Ne4 {[%clk 0:02:31.6]} 16... Kf8 {[%clk
0:02:08.9]} 17. c4 {[%clk 0:02:31]} 17... b6 {[%clk 0:02:08.3]} 18. b3 {[%clk
0:02:28.4]} 18... Kg8 {[%clk 0:02:07.9]} 19. h3 {[%clk 0:02:27.4]} 19... Kh7
{[%clk 0:02:07.5]} 20. Ng3 {[%clk 0:02:27.6]} 20... Re8 {[%clk 0:02:06.7]} 21.
Qe4+ {[%clk 0:02:27.7]} 21... Kh8 {[%clk 0:02:05.8]} 22. Qxc6 {[%clk 0:02:28]}
22... a5 {[%clk 0:02:02.7]} 23. a4 {[%clk 0:02:27.2]} 23... Bb4 {[%clk
0:02:02.2]} 24. Rf1 {[%clk 0:02:24.1]} 24... Rd8 {[%clk 0:02:01]} 25. Qe4 {[%clk
0:02:22.6]} 25... Rxd1 {[%clk 0:01:55.6]} 26. Rxd1 {[%clk 0:02:21.8]} 26... Qe8
{[%clk 0:01:56.2]} 27. Qh4 {[%clk 0:02:20.7]} 27... Kg8 {[%clk 0:01:50.8]} 28.
Nd4 {[%clk 0:02:19.2]} 28... Bd7 {[%clk 0:01:50.1]} 29. Qf4 {[%clk 0:02:13.7]}
29... Rd8 {[%clk 0:01:46.9]} 30. Ndf5 {[%clk 0:02:12.8]} 30... Bxf5 {[%clk
0:01:43.4]} 31. Rxd8 {[%clk 0:02:11.1]} 31... Qxd8 {[%clk 0:01:44.3]} 32. Nxf5
{[%clk 0:02:03.6]} 32... Qd1 {[%clk 0:01:43.8]} 33. Kg3 {[%clk 0:01:53.3]} 33...
Qxb3 {[%clk 0:01:41.3]} 34. Kh2 {[%clk 0:01:47.3]} 34... Qxa4 {[%clk 0:01:40.5]}
35. Qg4 {[%clk 0:01:45.3]} 35... g6 {[%clk 0:01:36.6]} 36. Nxh6+ {[%clk
0:01:39.4]} 36... Kf8 {[%clk 0:01:31.5]} 37. Qc8+ {[%clk 0:01:36.8]} 37... Qe8
{[%clk 0:01:29.4]} 38. Qxc7 {[%clk 0:01:29.3]} 38... Bc3 {[%clk 0:01:22.3]} 39.
Ng4 {[%clk 0:01:28.9]} 39... a4 {[%clk 0:01:18.6]} 40. Bh6+ {[%clk 0:01:27.3]}
1-0

[Event "Late-Titled-Tuesday-Blitz-February-13-2024"]
[Site "Chess.com"]
[Date "2024.02.13"]
[Round "11"]
[White "GoldenShare"]
[Black "ProfessorChess101"]
[Result "0-1"]
[WhiteElo "2556"]
[BlackElo "2785"]
[TimeControl "180+1"]
[EndTime "16:02:53 PST"]
[Termination "ProfessorChess101 won by resignation"]

1. e4 {[%clk 0:03:00.9]} 1... e5 {[%clk 0:02:59.7]} 2. Nf3 {[%clk 0:02:59.7]}
2... Nc6 {[%clk 0:02:59.4]} 3. Bc4 {[%clk 0:03:00.2]} 3... Nf6 {[%clk
0:02:58.9]} 4. O-O {[%clk 0:03:00.8]} 4... Nxe4 {[%clk 0:02:56.8]} 5. Nc3 {[%clk
0:03:01.4]} 5... Nd6 {[%clk 0:02:20]} 6. Bb3 {[%clk 0:03:01.2]} 6... Be7 {[%clk
0:02:18.5]} 7. Re1 {[%clk 0:03:01.3]} 7... O-O {[%clk 0:02:18.4]} 8. Nxe5 {[%clk
0:03:01.4]} 8... Nxe5 {[%clk 0:02:18.9]} 9. Rxe5 {[%clk 0:03:02.3]} 9... Bf6
{[%clk 0:02:19.5]} 10. Re1 {[%clk 0:02:56.7]} 10... c6 {[%clk 0:02:19.6]} 11. d4
{[%clk 0:02:53.8]} 11... Ne8 {[%clk 0:02:19]} 12. Ne4 {[%clk 0:02:48.7]} 12...
Be7 {[%clk 0:02:17.4]} 13. d5 {[%clk 0:02:45.3]} 13... d6 {[%clk 0:02:12.7]} 14.
Bf4 {[%clk 0:02:37.7]} 14... c5 {[%clk 0:02:08.5]} 15. c3 {[%clk 0:02:31.6]}
15... Nf6 {[%clk 0:02:07]} 16. Bc2 {[%clk 0:02:26.6]} 16... Nxe4 {[%clk
0:01:59.5]} 17. Bxe4 {[%clk 0:02:26.2]} 17... Bf6 {[%clk 0:01:50.7]} 18. Qf3
{[%clk 0:02:22.7]} 18... Re8 {[%clk 0:01:48.9]} 19. Qg3 {[%clk 0:02:20.6]} 19...
Bh4 {[%clk 0:01:39.3]} 20. Qd3 {[%clk 0:02:14.6]} 20... g6 {[%clk 0:01:35.7]}
21. a4 {[%clk 0:01:58.5]} 21... b6 {[%clk 0:01:32.6]} 22. a5 {[%clk 0:01:57.7]}
22... bxa5 {[%clk 0:01:29.1]} 23. Qb5 {[%clk 0:01:35.5]} 23... Bd7 {[%clk
0:01:24]} 24. Qxa5 {[%clk 0:01:35.6]} 24... Qxa5 {[%clk 0:01:20.5]} 25. Rxa5
{[%clk 0:01:36.5]} 25... f5 {[%clk 0:01:20.9]} 26. Bxd6 {[%clk 0:01:29.8]} 26...
fxe4 {[%clk 0:01:17.8]} 27. Rxc5 {[%clk 0:01:29.3]} 27... Rac8 {[%clk
0:01:08.9]} 28. b4 {[%clk 0:01:29.5]} 28... Bf6 {[%clk 0:01:06.2]} 29. c4 {[%clk
0:01:28.7]} 29... Bc3 {[%clk 0:01:01.1]} 30. Rxc8 {[%clk 0:01:26.8]} 30... Bxc8
{[%clk 0:00:56.9]} 31. Bc5 {[%clk 0:01:24.7]} 31... Bxe1 {[%clk 0:00:56.2]} 0-1

[Event "Late-Titled-Tuesday-Blitz-February-13-2024"]
[Site "Chess.com"]
[Date "2024.02.13"]
[Round "11"]
[White "PepeCuenca"]
[Black "Vamostodorecto"]
[Result "1-0"]
[WhiteElo "2639"]
[BlackElo "2374"]
[TimeControl "180+1"]
[EndTime "16:02:55 PST"]
[Termination "PepeCuenca won by resignation"]

1. d4 {[%clk 0:03:00.9]} 1... e6 {[%clk 0:02:25.2]} 2. c4 {[%clk 0:02:59.6]}
2... d5 {[%clk 0:02:25.8]} 3. Nf3 {[%clk 0:02:58.9]} 3... c5 {[%clk 0:02:23.4]}
4. cxd5 {[%clk 0:02:58.1]} 4... exd5 {[%clk 0:02:21.6]} 5. Nc3 {[%clk
0:02:58.4]} 5... Nf6 {[%clk 0:02:20.7]} 6. Bg5 {[%clk 0:02:57]} 6... Nc6 {[%clk
0:02:19.9]} 7. Bxf6 {[%clk 0:02:50.1]} 7... gxf6 {[%clk 0:02:16]} 8. e3 {[%clk
0:02:47]} 8... c4 {[%clk 0:02:13.8]} 9. g3 {[%clk 0:02:42.9]} 9... Bf5 {[%clk
0:02:08.7]} 10. Nh4 {[%clk 0:02:36.4]} 10... Be6 {[%clk 0:02:07]} 11. Bg2 {[%clk
0:02:27.3]} 11... Qd7 {[%clk 0:02:07.5]} 12. O-O {[%clk 0:02:24.4]} 12... Nb4
{[%clk 0:02:06.1]} 13. b3 {[%clk 0:02:17.6]} 13... Rc8 {[%clk 0:02:01.7]} 14.
bxc4 {[%clk 0:02:17]} 14... Rxc4 {[%clk 0:02:00.2]} 15. Ne2 {[%clk 0:02:13.9]}
15... Nc2 {[%clk 0:01:49.8]} 16. Rc1 {[%clk 0:02:10.2]} 16... Qa4 {[%clk
0:01:50.3]} 17. Nf4 {[%clk 0:02:05.9]} 17... Ba3 {[%clk 0:01:20.7]} 18. Rb1
{[%clk 0:02:01.8]} 18... Qc6 {[%clk 0:01:13.6]} 19. Qh5 {[%clk 0:02:00.1]} 19...
Nb4 {[%clk 0:01:07.9]} 20. Rb3 {[%clk 0:01:21]} 20... Bc1 {[%clk 0:01:04.6]} 21.
Rxb4 {[%clk 0:01:12.9]} 21... Rxb4 {[%clk 0:01:03]} 22. Nxe6 {[%clk 0:01:12.9]}
1-0

[Event "Late-Titled-Tuesday-Blitz-February-13-2024"]
[Site "Chess.com"]
[Date "2024.02.13"]
[Round "11"]
[White "Eloist"]
[Black "KacperKacprzak"]
[Result "0-1"]
[WhiteElo "2472"]
[BlackElo "2731"]
[TimeControl "180+1"]
[EndTime "16:03:08 PST"]
[Termination "KacperKacprzak won on time"]

1. e4 {[%clk 0:03:00.9]} 1... c5 {[%clk 0:02:58.7]} 2. Nf3 {[%clk 0:03:00.3]}
2... d6 {[%clk 0:02:57.8]} 3. Bb5+ {[%clk 0:03:00.2]} 3... Bd7 {[%clk
0:02:55.6]} 4. Bxd7+ {[%clk 0:03:00]} 4... Qxd7 {[%clk 0:02:56.5]} 5. c4 {[%clk
0:03:00]} 5... Nf6 {[%clk 0:02:56.8]} 6. Nc3 {[%clk 0:03:00]} 6... g6 {[%clk
0:02:57.1]} 7. d4 {[%clk 0:02:59.7]} 7... cxd4 {[%clk 0:02:58]} 8. Nxd4 {[%clk
0:02:59.9]} 8... Bg7 {[%clk 0:02:58.7]} 9. f3 {[%clk 0:03:00.2]} 9... O-O {[%clk
0:02:59.2]} 10. Be3 {[%clk 0:03:00]} 10... Rc8 {[%clk 0:02:59.5]} 11. b3 {[%clk
0:02:59.3]} 11... a6 {[%clk 0:02:59.8]} 12. Qd2 {[%clk 0:02:32.5]} 12... Nc6
{[%clk 0:02:58.9]} 13. Na4 {[%clk 0:02:26.6]} 13... Qd8 {[%clk 0:02:57.7]} 14.
Nxc6 {[%clk 0:02:16.3]} 14... Rxc6 {[%clk 0:02:58.6]} 15. Bd4 {[%clk 0:01:50.3]}
15... b5 {[%clk 0:02:56.4]} 16. cxb5 {[%clk 0:01:49.7]} 16... axb5 {[%clk
0:02:57.3]} 17. Nc3 {[%clk 0:01:49]} 17... Qa5 {[%clk 0:02:56.3]} 18. Rb1 {[%clk
0:00:13.5]} 18... Nd7 {[%clk 0:02:27.2]} 19. Bxg7 {[%clk 0:00:12.6]} 19... Kxg7
{[%clk 0:02:28.1]} 20. Nd5 {[%clk 0:00:04.6]} 20... Qxd2+ {[%clk 0:02:25.9]} 21.
Kxd2 {[%clk 0:00:04.3]} 21... Rxa2+ {[%clk 0:02:26.6]} 22. Ke3 {[%clk
0:00:03.9]} 22... Rxg2 {[%clk 0:02:03.8]} 23. Nxe7 {[%clk 0:00:02.9]} 23... Rcc2
{[%clk 0:02:04]} 24. Rhd1 {[%clk 0:00:01.2]} 24... Rge2+ {[%clk 0:01:49.2]} 0-1

[Event "Late-Titled-Tuesday-Blitz-February-13-2024"]
[Site "Chess.com"]
[Date "2024.02.13"]
[Round "11"]
[White "KetiTsatsalashvili"]
[Black "Lion-Al-Messi"]
[Result "0-1"]
[WhiteElo "2448"]
[BlackElo "2567"]
[TimeControl "180+1"]
[EndTime "16:03:11 PST"]
[Termination "Lion-Al-Messi won by resignation"]

1. d4 {[%clk 0:03:00.9]} 1... Nf6 {[%clk 0:02:58.2]} 2. Nf3 {[%clk 0:03:00]}
2... b6 {[%clk 0:02:58]} 3. e3 {[%clk 0:02:58.9]} 3... Bb7 {[%clk 0:02:58.1]} 4.
Bd3 {[%clk 0:02:59.6]} 4... e6 {[%clk 0:02:55.9]} 5. Nbd2 {[%clk 0:03:00.1]}
5... c5 {[%clk 0:02:55.6]} 6. b3 {[%clk 0:02:58.8]} 6... cxd4 {[%clk 0:02:54.9]}
7. exd4 {[%clk 0:02:58.3]} 7... Be7 {[%clk 0:02:54.3]} 8. Bb2 {[%clk 0:02:55.1]}
8... O-O {[%clk 0:02:54.7]} 9. O-O {[%clk 0:02:55.4]} 9... Nc6 {[%clk
0:02:54.6]} 10. Qe2 {[%clk 0:02:52.2]} 10... Nb4 {[%clk 0:02:53.9]} 11. Ne5
{[%clk 0:02:37.8]} 11... Rc8 {[%clk 0:02:48.4]} 12. Rac1 {[%clk 0:02:28.8]}
12... d6 {[%clk 0:02:46.7]} 13. Ng4 {[%clk 0:02:13.6]} 13... Nxg4 {[%clk
0:02:35]} 14. Qxg4 {[%clk 0:02:14.5]} 14... Nxd3 {[%clk 0:02:34.2]} 15. cxd3
{[%clk 0:02:15.4]} 15... Bd5 {[%clk 0:02:28.1]} 16. Qe2 {[%clk 0:02:01.1]} 16...
Qd7 {[%clk 0:02:26.6]} 17. Rxc8 {[%clk 0:01:59]} 17... Rxc8 {[%clk 0:02:27.5]}
18. Rc1 {[%clk 0:01:56.5]} 18... Rxc1+ {[%clk 0:02:27.1]} 19. Bxc1 {[%clk
0:01:57.4]} 19... Qc6 {[%clk 0:02:27.2]} 20. Bb2 {[%clk 0:01:51.3]} 20... Bxg2
{[%clk 0:02:24.9]} 21. d5 {[%clk 0:01:10.4]} 21... Bxd5 {[%clk 0:02:21.9]} 22.
Qg4 {[%clk 0:01:09.6]} 22... f6 {[%clk 0:02:17.8]} 23. Ne4 {[%clk 0:01:03]}
23... Qc2 {[%clk 0:02:01.1]} 24. Bd4 {[%clk 0:00:12.7]} 24... Qb1+ {[%clk
0:02:00.6]} 25. Kg2 {[%clk 0:00:11.5]} 25... Qxd3 {[%clk 0:02:00.6]} 26. f3
{[%clk 0:00:08.8]} 26... Qxd4 {[%clk 0:01:57.1]} 27. Qh5 {[%clk 0:00:06.5]}
27... g6 {[%clk 0:01:51]} 0-1

[Event "Late-Titled-Tuesday-Blitz-February-13-2024"]
[Site "Chess.com"]
[Date "2024.02.13"]
[Round "11"]
[White "IMRosen"]
[Black "stollenmonster"]
[Result "0-1"]
[WhiteElo "2629"]
[BlackElo "2850"]
[TimeControl "180+1"]
[EndTime "16:03:18 PST"]
[Termination "stollenmonster won by checkmate"]

1. d4 {[%clk 0:02:55.6]} 1... Nf6 {[%clk 0:02:59.7]} 2. Bf4 {[%clk 0:02:55.3]}
2... e6 {[%clk 0:03:00.6]} 3. e3 {[%clk 0:02:55.2]} 3... d5 {[%clk 0:03:01.5]}
4. Nf3 {[%clk 0:02:52.3]} 4... Ne4 {[%clk 0:02:59.6]} 5. Nbd2 {[%clk 0:02:47.2]}
5... Be7 {[%clk 0:02:53.8]} 6. Nxe4 {[%clk 0:02:42.5]} 6... dxe4 {[%clk
0:02:54.7]} 7. Nd2 {[%clk 0:02:43.3]} 7... f5 {[%clk 0:02:55.4]} 8. Bc4 {[%clk
0:02:31.7]} 8... O-O {[%clk 0:02:51.7]} 9. h4 {[%clk 0:02:30.2]} 9... Bd6 {[%clk
0:02:52.1]} 10. g3 {[%clk 0:02:28.4]} 10... Qe7 {[%clk 0:02:48.5]} 11. Qe2
{[%clk 0:02:25.4]} 11... Nd7 {[%clk 0:02:48.9]} 12. O-O-O {[%clk 0:02:18.8]}
12... Nb6 {[%clk 0:02:45.8]} 13. Bb3 {[%clk 0:02:17.7]} 13... a5 {[%clk
0:02:46.2]} 14. c4 {[%clk 0:02:08.6]} 14... a4 {[%clk 0:02:42]} 15. Bc2 {[%clk
0:02:06.3]} 15... a3 {[%clk 0:02:15.9]} 16. c5 {[%clk 0:01:54.7]} 16... axb2+
{[%clk 0:02:10.9]} 17. Kxb2 {[%clk 0:01:54]} 17... Bxf4 {[%clk 0:02:11.1]} 18.
gxf4 {[%clk 0:01:50.8]} 18... Nd5 {[%clk 0:02:11.4]} 19. Bb3 {[%clk 0:01:45.7]}
19... b6 {[%clk 0:02:10.3]} 20. Rc1 {[%clk 0:01:29.6]} 20... Nb4 {[%clk
0:02:05.9]} 21. Rc3 {[%clk 0:00:38.4]} 21... Nd3+ {[%clk 0:02:03.1]} 22. Rxd3
{[%clk 0:00:36.9]} 22... Ba6 {[%clk 0:02:03.7]} 23. Qh5 {[%clk 0:00:19.8]} 23...
Bxd3 {[%clk 0:02:00.9]} 24. Rc1 {[%clk 0:00:19.8]} 24... b5 {[%clk 0:01:58.9]}
25. Qg5 {[%clk 0:00:12.2]} 25... Rf6 {[%clk 0:01:57.7]} 26. h5 {[%clk
0:00:11.5]} 26... h6 {[%clk 0:01:56.1]} 27. Qg1 {[%clk 0:00:10.3]} 27... c6
{[%clk 0:01:52.7]} 28. f3 {[%clk 0:00:10.7]} 28... Qa7 {[%clk 0:01:49]} 29. fxe4
{[%clk 0:00:08.4]} 29... fxe4 {[%clk 0:01:49.9]} 30. Qg2 {[%clk 0:00:05.9]}
30... Qa3+ {[%clk 0:01:49.8]} 31. Ka1 {[%clk 0:00:06.5]} 31... Qxc1+ {[%clk
0:01:49.9]} 32. Nb1 {[%clk 0:00:05.6]} 32... Qxb1# {[%clk 0:01:50.4]} 0-1